[Event "German-ch Blitz Women 2022"]
[Site "Magdeburg"]
[Date "2022.08.13"]
[Round "15.2"]
[White "Fock, Sana"]
[Black "Leveikina, Jevgenija"]
[Result "0-1"]
[ECO "B15"]
[WhiteElo "1807"]
[BlackElo "2061"]
[Annotator "NA RC"]
[PlyCount "85"]
[EventDate "2022.08.10"]
[EventType "tourn"]
[EventCountry "GER"]
[SourceTitle "playchess.com"]
[Source "ChessBase"]
[SourceQuality "1"]
[TimeControl "180+2"]

1. e4 c6 2. d4 {[%emt 0:00:03]} d5 {[%emt 0:00:00]} 3. Nd2 dxe4 4. Nxe4 Nf6 5. Nxf6+ {[%emt 0:00:10]} exf6 {[%emt 0:00:02]} 6. Nf3 {[%emt 0:00:07]} Bd6 {[%emt 0:00:02]} 7. Bd3 {[%emt 0:00:05]} O-O {[%emt 0:00:01]} 8. O-O {[%emt 0:00:07]} Bg4 {[%emt 0:00:01]} 9. c3 {[%emt 0:00:11]} Qc7 {[%emt 0:00:02]} 10. h3 {[%emt 0:00:02]} Bh5 {[%emt 0:00:01]} 11. Be3 {[%emt 0:00:23]} Nd7 {[%emt 0:00:01]} 12. Be2 {[%emt 0:00:18]} f5 {[%emt 0:00:04]} 13. Nh4 {[%emt 0:00:29]} Bg6 {[%emt 0:00:12]} 14. Nxg6 {[%emt 0:00:30]} hxg6 {[%emt 0:00:01]} 15. Bf3 {[%emt 0:00:21]} Nf6 {[%emt 0:00:02]} 16. Bg5 {[%emt 0:00:06]} Ne4 {[%emt 0:00:05]} 17. Bxe4 {[%emt 0:00:02]} fxe4 {[%emt 0:00:02]} 18. Qg4 {[%emt 0:00:18]} f5 {[%emt 0:00:05]} 19. Qh4 {[%emt 0:00:04]} Rae8 {[%emt 0:00:20]} 20. Rae1 {[%emt 0:00:02]} Qf7 {[%emt 0:00:05]} 21. a3 {[%emt 0:00:04]} Qd5 {[%emt 0:00:16]} 22. Bf4 {[%emt 0:00:05]} Be7 {[%emt 0:00:17]} 23. Bg5 {[%emt 0:00:02]} Bf6 {[%emt 0:00:12]} 24. Bxf6 {[%emt 0:00:02]} Rxf6 {[%emt 0:00:05]} 25. g4 {[%emt 0:00:05]} f4 {[%emt 0:00:04]} 26. f3 {[%emt 0:00:03]} e3 {[%emt 0:00:08]} 27. Re2 {[%emt 0:00:02]} g5 {[%emt 0:00:08]} 28. Qe1 {[%emt 0:00:05]} Rh6 {[%emt 0:00:09]} 29. Rh2 {[%emt 0:00:05]} Rh4 {[%emt 0:00:05]} 30. Kg2 {[%emt 0:00:02]} Qb5 {[%emt 0:00:02]} 31. Kg1 {[%emt 0:00:04]} Re6 {[%emt 0:00:04]} 32. Qe2 {[%emt 0:00:04]} Qxe2 {[%emt 0:00:04]} 33. Rxe2 {[%emt 0:00:01]} Rxh3 {[%emt 0:00:02]} 34. Rh2 {[%emt 0:00:01]} Rg3+ {[%emt 0:00:22]} 35. Rg2 {[%emt 0:00:03]} e2 {[%emt 0:00:07]} 36. Re1 {[%emt 0:00:01]} Rxf3 {[%emt 0:00:02]} 37. Rf2 {[%emt 0:00:03]} Rg3+ {[%emt 0:00:03]} 38. Rg2 {[%emt 0:00:01]} Rge3 {[%emt 0:00:01]} 39. Kf2 {[%emt 0:00:04]} Kf7 {[%emt 0:00:07]} 40. Kg1 {[%emt 0:00:03]} Kg6 {[%emt 0:00:01]} 41. Rh2 {[%emt 0:00:02]} R6e4 {[%emt 0:00:04]} 42. Rh8 {[%emt 0:00:03]} f3 {[%emt 0:00:05]} 43. Rd8 0-1

[Event "German-ch Blitz Women 2022"]
[Site "Magdeburg"]
[Date "2022.08.13"]
[Round "15.3"]
[White "Schuster, Rebekka"]
[Black "Kosovska, Olena"]
[Result "1/2-1/2"]
[ECO "B32"]
[WhiteElo "1815"]
[BlackElo "1831"]
[Annotator "NA RC COMBH"]
[PlyCount "47"]
[EventDate "2022.08.10"]
[EventType "tourn"]
[EventCountry "GER"]
[SourceTitle "playchess.com"]
[Source "ChessBase"]
[SourceQuality "1"]
[TimeControl "180+2"]

1. e4 {[%emt 0:00:00]} c5 {[%emt 0:00:01]} 2. Nf3 {[%emt 0:00:02]} Nc6 {[%emt 0:00:01]} 3. d4 {[%emt 0:00:01]} cxd4 {[%emt 0:00:01]} 4. Nxd4 {[%emt 0:00:01]} e5 {[%emt 0:00:00]} 5. Nb3 {[%emt 0:00:13]} Nf6 {[%emt 0:00:02]} 6. Nc3 {[%emt 0:00:08]} Bb4 {[%emt 0:00:02]} 7. f3 {[%emt 0:00:11]} O-O {[%emt 0:00:03]} 8. Bd2 {[%emt 0:00:03]} d5 {[%emt 0:00:08]} 9. exd5 {[%emt 0:00:20]} Nxd5 {[%emt 0:00:02]} 10. Nxd5 Qxd5 {[%emt 0:00:12]} 11. Bxb4 {[%emt 0:00:05]} Nxb4 {[%emt 0:00:20]} 12. Qxd5 {[%emt 0:00:25]} Nxd5 {[%emt 0:00:01]} 13. O-O-O {[%emt 0:00:08]} Nf4 {[%emt 0:00:21]} 14. Re1 {[%emt 0:00:15]} Re8 {[%emt 0:00:14]} 15. g3 {[%emt 0:00:03]} Nd5 {[%emt 0:00:09]} 16. Bc4 {[%emt 0:00:02]} Nb6 {[%emt 0:00:02]} 17. Bb5 {[%emt 0:00:06]} Bd7 {[%emt 0:00:05]} 18. Bxd7 {[%emt 0:00:15]} Nxd7 {[%emt 0:00:01]} 19. Rd1 {[%emt 0:00:00]} Nf6 {[%emt 0:00:06]} 20. Nc5 {[%emt 0:00:07]} b6 {[%emt 0:00:07]} 21. Nd3 e4 {[%emt 0:00:07]} 22. fxe4 {[%emt 0:00:21]} Rxe4 {[%emt 0:00:02]} 23. Rhe1 {[%emt 0:00:04]} Rae8 {[%emt 0:00:04]} 24. Rxe4 {[%emt 0:00:02]} 1/2-1/2

[Event "German-ch Blitz Women 2022"]
[Site "Magdeburg"]
[Date "2022.08.13"]
[Round "15.4"]
[White "Zschischang, Marine"]
[Black "Falke, Ornella"]
[Result "1/2-1/2"]
[ECO "A46"]
[WhiteElo "2083"]
[BlackElo "1912"]
[Annotator "NA RC"]
[PlyCount "49"]
[EventDate "2022.08.10"]
[EventType "tourn"]
[EventCountry "GER"]
[SourceTitle "playchess.com"]
[Source "ChessBase"]
[SourceQuality "1"]
[TimeControl "180+2"]

1. d4 Nf6 2. Nf3 e6 3. Bg5 h6 4. Bh4 g5 5. Bg3 c5 6. e3 Nc6 7. c3 Bg7 8. Nbd2 cxd4 9. exd4 d6 10. Bd3 Ne7 11. Qe2 b6 12. Nc4 d5 13. Nce5 Bd7 14. O-O a6 15. a4 Nh5 16. Rfe1 Nxg3 17. fxg3 g4 18. Nh4 h5 19. Qf2 Bxe5 20. Rxe5 Rh6 21. Qf4 Ng8 22. Rf1 Qe7 23. b3 b5 24. a5 Rc8 25. Qd2 1/2-1/2

[Event "German-ch Blitz Women 2022"]
[Site "Magdeburg"]
[Date "2022.08.13"]
[Round "15.5"]
[White "Staerk, Elisa"]
[Black "Stangl, Anita"]
[Result "0-1"]
[ECO "D31"]
[WhiteElo "1947"]
[BlackElo "2023"]
[Annotator "NA RC"]
[PlyCount "85"]
[EventDate "2022.08.10"]
[EventType "tourn"]
[EventCountry "GER"]
[SourceTitle "playchess.com"]
[Source "ChessBase"]
[SourceQuality "1"]
[TimeControl "180+2"]

1. d4 {[%emt 0:00:00]} e6 {[%emt 0:00:00]} 2. c4 {[%emt 0:00:01]} d5 {[%emt 0:00:01]} 3. Nc3 c6 4. e3 {[%emt 0:00:02]} f5 {[%emt 0:00:02]} 5. Nf3 {[%emt 0:00:01]} Bd6 {[%emt 0:00:01]} 6. Be2 {[%emt 0:00:01]} Nf6 {[%emt 0:00:01]} 7. O-O {[%emt 0:00:01]} Nbd7 {[%emt 0:00:01]} 8. b3 {[%emt 0:00:03]} Ne4 {[%emt 0:00:01]} 9. Bb2 {[%emt 0:00:01]} O-O {[%emt 0:00:02]} 10. Nd2 {[%emt 0:00:04]} Qh4 {[%emt 0:00:12]} 11. f4 {[%emt 0:00:13]} Rf6 {[%emt 0:00:27]} 12. Rf3 {[%emt 0:00:25]} Rh6 {[%emt 0:00:03]} 13. Rh3 {[%emt 0:00:10]} Qf2+ {[%emt 0:00:02]} 14. Kh1 {[%emt 0:00:06]} Rxh3 {[%emt 0:00:06]} 15. gxh3 {[%emt 0:00:01]} Qxe3 {[%emt 0:00:02]} 16. Ndxe4 {[%emt 0:00:08]} fxe4 {[%emt 0:00:05]} 17. Bg4 {[%emt 0:00:07]} Nf6 {[%emt 0:00:08]} 18. Qe2 {[%emt 0:00:38]} Bxf4 {[%emt 0:00:05]} 19. Qxe3 {[%emt 0:00:07]} Bxe3 {[%emt 0:00:01]} 20. Ne2 {[%emt 0:00:08]} Nxg4 {[%emt 0:00:22]} 21. hxg4 {[%emt 0:00:01]} e5 {[%emt 0:00:01]} 22. dxe5 {[%emt 0:00:08]} Bxg4 {[%emt 0:00:01]} 23. Nd4 {[%emt 0:00:17]} c5 {[%emt 0:00:19]} 24. h3 {[%emt 0:00:17]} Bxh3 {[%emt 0:00:10]} 25. Nc2 {[%emt 0:00:14]} d4 {[%emt 0:00:18]} 26. Nxe3 {[%emt 0:00:05]} dxe3 {[%emt 0:00:02]} 27. Re1 {[%emt 0:00:07]} Rd8 {[%emt 0:00:01]} 28. Bc1 {[%emt 0:00:11]} Bg4 {[%emt 0:00:06]} 29. Bxe3 {[%emt 0:00:04]} b6 {[%emt 0:00:06]} 30. Bg5 {[%emt 0:00:12]} Re8 {[%emt 0:00:06]} 31. Bf4 Bf3+ {[%emt 0:00:08]} 32. Kh2 {[%emt 0:00:02]} Re6 {[%emt 0:00:01]} 33. Kg3 {[%emt 0:00:01]} h6 {[%emt 0:00:02]} 34. Kf2 {[%emt 0:00:02]} g5 {[%emt 0:00:05]} 35. Bg3 {[%emt 0:00:02]} h5 {[%emt 0:00:01]} 36. Ke3 {[%emt 0:00:02]} h4 {[%emt 0:00:11]} 37. Bf2 {[%emt 0:00:05]} h3 {[%emt 0:00:14]} 38. Bg3 {[%emt 0:00:02]} Rh6 {[%emt 0:00:04]} 39. Bh2 {[%emt 0:00:04]} Bg2 {[%emt 0:00:11]} 40. Rd1 {[%emt 0:00:02]} Rh7 {[%emt 0:00:14]} 41. Rd8+ {[%emt 0:00:02]} Kg7 {[%emt 0:00:01]} 42. Rd7+ {[%emt 0:00:01]} Kg6 {[%emt 0:00:00]} 43. e6 0-1

[Event "German-ch Blitz Women 2022"]
[Site "Magdeburg"]
[Date "2022.08.13"]
[Round "15.6"]
[White "Melamed, Tatjana"]
[Black "Wulf, Constanze"]
[Result "1-0"]
[ECO "B01"]
[WhiteElo "2380"]
[BlackElo "1835"]
[Annotator "TA"]
[PlyCount "31"]
[EventDate "2022.08.10"]
[EventType "tourn"]
[EventCountry "GER"]
[SourceTitle "playchess.com"]
[Source "ChessBase"]
[SourceQuality "1"]
[TimeControl "180+2"]

{[%evp 9,30,33,42,33,143,66,95,77,84,59,47,50,242,233,236,249,829,838,834,828,29987,2526,29999]} 1. e4 d5 2. exd5 Qxd5 3. Nc3 Qd6 4. d4 Nf6 5. Nf3 a6 6. Bd3 {B01: Scandinavian Defence.} b5 (6... g6 $14) 7. O-O (7. a4 $16) 7... Bb7 $1 $14 8. Qe2 {White is better.} (8. Ng5 {is more complex.} Nbd7 9. a4 b4 10. Nce4) 8... e6 9. Ne4 {[#]} Nxe4 $146 ({Predecessor:} 9... Qd5 10. Ng3 Be7 11. b3 O-O 12. c4 bxc4 13. bxc4 Qd8 14. Rb1 Qc8 15. d5 Bd6 {1-0 (25) Decker,N (2105)-Schulze,M (2222) Playchess.com INT 2021}) 10. Bxe4 Qb6 {[#] A mistake that costs the game.} (10... Bxe4 $14 11. Qxe4 Qc6) 11. d5 $18 Nd7 12. dxe6 fxe6 (12... Qxe6 13. Ng5 Qe7 14. Nxf7 (14. Re1 Bxe4 15. Nxe4 O-O-O $16) 14... Nf6) 13. Bxb7 Qxb7 14. Qxe6+ Kd8 15. Bg5+ (15. Ne5 $142 c6 16. Rd1 Bd6 17. Rxd6 Ra7 18. Rxc6 Qc7 19. Nf7+ Kc8 20. Bf4) 15... Kc8 16. Qe8# {Weighted Error Value: White=0.20 (precise) /Black=1.26} 1-0

[Event "German-ch Blitz Women 2022"]
[Site "Magdeburg"]
[Date "2022.08.13"]
[Round "15.7"]
[White "Schulze, Lara"]
[Black "Doll, Rebecca"]
[Result "1-0"]
[ECO "C47"]
[WhiteElo "2292"]
[BlackElo "1933"]
[Annotator "TA"]
[PlyCount "79"]
[EventDate "2022.08.10"]
[EventType "tourn"]
[EventCountry "GER"]
[SourceTitle "playchess.com"]
[Source "ChessBase"]
[SourceQuality "1"]
[TimeControl "180+2"]

{[%evp 13,79,50,32,-4,5,-16,-25,-21,0,0,0,-12,0,-14,0,-40,-9,-40,-26,-37,208,221,209,208,226,211,197,203,254,268,266,268,256,170,360,361,441,441,472,466,468,394,423,419,413,411,424,385,414,411,399,359,456,455,486,388,477,472,1027,1014,997,966,1281,1128,1112,976,925,895]} 1. e4 {[%emt 0:00:01]} e5 {[%emt 0:00:01]} 2. Nf3 {[%emt 0:00:01]} Nc6 {[%emt 0:00:02]} 3. Nc3 {[%emt 0:00:00]} Nf6 {[%emt 0:00:03]} 4. d4 {[%emt 0:00:01]} exd4 {[%emt 0:00:02]} 5. Nxd4 {[%emt 0:00:00]} Nxe4 {[%emt 0:00:05]} 6. Nxe4 {[%emt 0:00:04]} Qe7 {[%emt 0:00:01]} 7. f3 {[%emt 0:00:43]} d5 {[%emt 0:00:18][%mdl 64] Pin} 8. Nxc6 {[%emt 0:00:23] C47: Scotch Four Knights and Four Knights with 4 g3.} (8. Bb5 $5 {[%cal Rd4c6]} Bd7 9. Bxc6 bxc6 10. O-O $1 dxe4 11. Re1 $14) 8... bxc6 {[%emt 0:00:02]} 9. Be2 {[%emt 0:00:24] Black must now prevent Nc3.} dxe4 {[%emt 0:00:07]} 10. O-O {[%emt 0:00:01] [#] Black has an edge.} Qc5+ $146 {[%emt 0:00:12]} ({Predecessor:} 10... Qe5 11. fxe4 Bd6 12. Bf4 Qc5+ 13. Kh1 Bxf4 14. Rxf4 O-O 15. Bd3 Qe5 16. Qc1 Be6 {0-1 (32) Fiorito,F (2380)-Kolosowski,M (2448) Chess.com INT 2020}) 11. Kh1 {[%emt 0:00:01]} Bd6 {[%emt 0:00:24]} 12. fxe4 {[%emt 0:00:03]} O-O {[%emt 0:00:03]} ({Don't do} 12... Qe5 13. Bf4 Qe6 14. e5 $16) 13. Bd3 {[%emt 0:00:05]} Be6 {[%emt 0:00:20]} 14. Qf3 {[%emt 0:00:06]} Qe5 {[%emt 0:00:11][%csl Gd6][%cal Re5h2]} 15. g3 {[%emt 0:00:44]} Rab8 {[%emt 0:00:14][%cal Of7f5]} 16. c3 {[%emt 0:00:02]} c5 $2 {[%emt 0:00:17] A mistake that costs the game.} (16... Rfd8 $15 {keeps the upper hand.}) 17. Bf4 $18 {[%emt 0:00:04]} Qf6 {[%emt 0:00:18] [#]} 18. e5 $1 {[%emt 0:00:14]} Bxe5 {[%emt 0:00:23]} 19. Qh5 $40 {[%emt 0:00:01][%csl Gd3][%cal Rh5h7][%mdl 128] Black is in trouble.} Bd5+ {[%emt 0:00:24]} 20. Kg1 {[%emt 0:00:01][%csl Gd3][%cal Rh5h7]} Bd4+ {[%emt 0:00:05]} 21. cxd4 {[%emt 0:00:04] Really sharp!} Qxd4+ {[%emt 0:00:02]} 22. Rf2 {[%emt 0:00:13][%csl Gd3][%cal Rh5h7]} g6 {[%emt 0:00:01]} (22... Qxd3 $2 23. Rd1 Bf3 24. Qxf3 (24. Rxd3 Bxh5 25. Rd5 Bg4 $11) 24... Qxf3 25. Rxf3 $18) 23. Qe2 {[%emt 0:00:04] aiming for Qc2.} Rfe8 $2 {[%emt 0:00:03]} (23... c4) 24. Qc2 {[%emt 0:00:03]} c4 {[%emt 0:00:07]} 25. Bf1 {[%emt 0:00:01]} Qe4 {[%emt 0:00:04]} 26. Qxe4 {[%emt 0:00:02]} Rxe4 {[%emt 0:00:01]} 27. Bg2 {[%emt 0:00:02]} Rd4 {[%emt 0:00:01]} 28. Bxd5 {[%emt 0:00:02]} Rxd5 {[%emt 0:00:01]} 29. Rc1 {[%emt 0:00:02]} Rb4 {[%emt 0:00:02]} 30. Rfc2 {[%emt 0:00:02]} Rd4 {[%emt 0:00:04]} 31. Kf2 {[%emt 0:00:02]} f6 {[%emt 0:00:02]} 32. Be3 {[%emt 0:00:01]} Re4 {[%emt 0:00:03]} 33. Kf3 {[%emt 0:00:01]} f5 {[%emt 0:00:00]} 34. Bd2 {[%emt 0:00:03]} Ra4 {[%emt 0:00:02]} 35. a3 {[%emt 0:00:01] White is clearly winning.} a5 {[%emt 0:00:03]} (35... Kf7 $142 36. Bb4 Ke6 37. Rxc4 Rxc4 38. Rxc4 Kd7) 36. Bc3 {[%emt 0:00:02]} Kf7 {[%emt 0:00:01]} 37. Rd2 {[%emt 0:00:01]} Ke6 {[%emt 0:00:02]} 38. Rcd1 {[%emt 0:00:01] Rd7 is the strong threat.} c5 {[%emt 0:00:02]} 39. Re2 {[%emt 0:00:01]} Rxe2 {[%emt 0:00:02]} 40. Kxe2 {[%emt 0:00:01] Weighted Error Value: White=0.20 (precise) /Black=0.51} 1-0

[Event "German-ch Blitz Women 2022"]
[Site "Magdeburg"]
[Date "2022.08.13"]
[Round "15.8"]
[White "Nikolaeva, Mariya A"]
[Black "Kunze, Kerstin"]
[Result "1-0"]
[ECO "C68"]
[WhiteElo "1309"]
[BlackElo "2020"]
[Annotator "TA"]
[PlyCount "67"]
[EventDate "2022.08.10"]
[EventType "tourn"]
[EventCountry "GER"]
[SourceTitle "playchess.com"]
[Source "ChessBase"]
[SourceQuality "1"]
[TimeControl "180+2"]

{[%evp 14,66,30,27,38,32,44,22,35,35,28,15,19,18,30,29,40,25,18,16,31,0,36,26,30,25,24,19,31,17,32,34,40,34,34,31,39,38,47,26,25,36,257,-96,-95,-109,-119,-219,-218,-220,-190,-212,-153,-153,29999]} 1. e4 {[%emt 0:00:01]} e5 {[%emt 0:00:01]} 2. Nf3 {[%emt 0:00:01]} Nc6 {[%emt 0:00:01]} 3. Bb5 {[%emt 0:00:01]} a6 {[%emt 0:00:01]} 4. Bxc6 {[%emt 0:00:01]} dxc6 {[%emt 0:00:02]} 5. Nc3 {[%emt 0:00:01]} Bg4 {[%emt 0:00:24]} 6. h3 {[%emt 0:00:03]} Bxf3 {[%emt 0:00:16]} 7. Qxf3 {[%emt 0:00:01]} Nf6 {[%emt 0:00:02]} 8. d3 {[%emt 0:00:02]} Be7 {[%emt 0:00:08] C68: Ruy Lopez: Exchange Variation, sidelines.} 9. O-O {[%emt 0:00:04]} O-O {[%emt 0:00:01]} 10. Be3 {[%emt 0:00:03] [#]} Ne8 $146 {[%emt 0:00:34] The position is equal.} ({Predecessor:} 10... Qd7 11. Rfd1 Rad8 12. d4 exd4 13. Bxd4 Qc8 14. Be3 Rxd1+ 15. Rxd1 Rd8 16. e5 Rxd1+ 17. Nxd1 {0-1 (52) Tavakoli Garmase,M-Ghoreishi,S Chess.com INT 2021}) 11. Qe2 {[%emt 0:00:10]} Bd6 {[%emt 0:00:39]} 12. Qg4 {[%emt 0:00:18]} Nf6 {[%emt 0:00:05]} 13. Qh4 {[%emt 0:00:09]} Be7 {[%emt 0:00:10]} 14. Qg3 {[%emt 0:00:06]} Qd6 {[%emt 0:00:04]} 15. Ne2 {[%emt 0:00:24]} Nh5 {[%emt 0:00:09]} 16. Qg4 {[%emt 0:00:12]} Nf6 {[%emt 0:00:22]} 17. Qg3 {[%emt 0:00:12]} Kh8 {[%emt 0:00:05]} (17... Nh5 $5 {[%cal Rh5g3]} 18. Qh2 g6 $11) 18. f4 {[%emt 0:00:03]} Nh5 {[%emt 0:00:02]} 19. Qg4 {[%emt 0:00:08]} (19. fxe5 {feels hotter.} Nxg3 20. exd6 Nxe2+ 21. Kf2) 19... Nxf4 {[%emt 0:00:01]} 20. Nxf4 {[%emt 0:00:02]} exf4 {[%emt 0:00:01]} 21. Rxf4 {[%emt 0:00:15]} Bf6 {[%emt 0:00:09]} 22. Raf1 {[%emt 0:00:21][%cal Of4f6]} Bd4 {[%emt 0:00:01]} 23. Bxd4 {[%emt 0:00:07]} Qxd4+ {[%emt 0:00:01]} 24. Kh1 {[%emt 0:00:04]} Kg8 {[%emt 0:00:03]} 25. b3 {[%emt 0:00:03]} Qb2 {[%emt 0:00:07]} 26. R1f2 {[%emt 0:00:09]} Qxa2 {[%emt 0:00:07]} 27. Qd7 {[%emt 0:00:02][%csl LRc7,LRf7]} Qa1+ $2 {[%emt 0:00:02] [#]} (27... f6 $1 $14) 28. Kh2 $2 {[%emt 0:00:01]} ({White has to play} 28. Rf1 $18 Qe5 29. Rxf7) 28... Qe5 $17 {[%emt 0:00:02]} 29. d4 {[%emt 0:00:07]} Qd6 {[%emt 0:00:09]} 30. Qg4 {[%emt 0:00:16]} (30. Qxd6 $17 {is a better defense.} cxd6 31. Kg3) 30... Qxd4 $19 {[%emt 0:00:02]} 31. R2f3 {[%emt 0:00:07]} Rad8 {[%emt 0:00:01]} 32. Rg3 {[%emt 0:00:01]} Qe5 {[%emt 0:00:06]} 33. Rf5 {[%emt 0:00:04]} Qd6 {[%emt 0:00:02] [#]} (33... Qa1 $17 34. e5 g6) 34. Qxg7# {[%emt 0:00:02] Weighted Error Value: White=0.34/Black=0.54} 1-0

[Event "German-ch Blitz Women 2022"]
[Site "Magdeburg"]
[Date "2022.08.13"]
[Round "15.9"]
[White "Zhou, Lepu Coco"]
[Black "Rath, Alina"]
[Result "1/2-1/2"]
[ECO "B56"]
[WhiteElo "1986"]
[BlackElo "2062"]
[Annotator "NA RC"]
[PlyCount "92"]
[EventDate "2022.08.10"]
[EventType "tourn"]
[EventCountry "GER"]
[SourceTitle "playchess.com"]
[Source "ChessBase"]
[SourceQuality "1"]
[TimeControl "180+2"]

1. e4 {[%emt 0:00:01]} c5 {[%emt 0:00:00]} 2. Nf3 {[%emt 0:00:01]} Nc6 {[%emt 0:00:01]} 3. d4 {[%emt 0:00:01]} cxd4 {[%emt 0:00:01]} 4. Nxd4 {[%emt 0:00:01]} Nf6 {[%emt 0:00:01]} 5. Nc3 {[%emt 0:00:03]} d6 {[%emt 0:00:01]} 6. Bb5 {[%emt 0:00:14]} Bd7 {[%emt 0:00:01]} 7. O-O {[%emt 0:00:05]} g6 {[%emt 0:00:02]} 8. Nxc6 {[%emt 0:00:06]} bxc6 {[%emt 0:00:01]} 9. Ba4 {[%emt 0:00:02]} Qc7 {[%emt 0:00:06]} 10. Be3 {[%emt 0:00:08]} Bg7 {[%emt 0:00:02]} 11. h3 {[%emt 0:00:06]} O-O {[%emt 0:00:01]} 12. Qd3 {[%emt 0:00:03]} Rab8 {[%emt 0:00:04]} 13. Bb3 {[%emt 0:00:02]} a5 {[%emt 0:00:15]} 14. Rad1 {[%emt 0:00:15]} Bc8 {[%emt 0:00:03]} 15. Na4 {[%emt 0:00:14]} c5 {[%emt 0:00:08]} 16. c4 {[%emt 0:00:03]} Bb7 {[%emt 0:00:03]} 17. Nc3 {[%emt 0:00:01]} Bc6 {[%emt 0:00:04]} 18. e5 {[%emt 0:00:26]} dxe5 {[%emt 0:00:10]} 19. Bxc5 {[%emt 0:00:02]} Rfd8 {[%emt 0:00:06]} 20. Qe3 {[%emt 0:00:06]} Rxd1 {[%emt 0:00:10]} 21. Rxd1 {[%emt 0:00:01]} e4 {[%emt 0:00:01]} 22. Nd5 {[%emt 0:00:06]} Bxd5 {[%emt 0:00:09]} 23. cxd5 {[%emt 0:00:02]} a4 {[%emt 0:00:02]} 24. Bxa4 {[%emt 0:00:10]} Rxb2 {[%emt 0:00:01]} 25. Bb3 {[%emt 0:00:01]} Ne8 {[%emt 0:00:41]} 26. Bd4 {[%emt 0:00:04]} Bxd4 {[%emt 0:00:16]} 27. Qxd4 {[%emt 0:00:02]} Re2 {[%emt 0:00:03]} 28. Kf1 {[%emt 0:00:09]} Rc2 {[%emt 0:00:12]} 29. Bxc2 {[%emt 0:00:05]} Qxc2 {[%emt 0:00:01]} 30. Rd2 {[%emt 0:00:12]} Qb1+ {[%emt 0:00:04]} 31. Ke2 {[%emt 0:00:02]} Qb5+ {[%emt 0:00:08]} 32. Ke3 {[%emt 0:00:03]} Nd6 {[%emt 0:00:01]} 33. Kf4 {[%emt 0:00:24]} Qb8 {[%emt 0:00:14]} 34. Qe5 {[%emt 0:00:16]} f6 {[%emt 0:00:10]} 35. Qe6+ {[%emt 0:00:02]} Kf8 {[%emt 0:00:02]} 36. Kg4 {[%emt 0:00:06]} f5+ {[%emt 0:00:06]} 37. Kh4 {[%emt 0:00:07]} Nf7 {[%emt 0:00:03]} 38. g3 {[%emt 0:00:15]} Qb4 {[%emt 0:00:12]} 39. Rc2 {[%emt 0:00:05]} e3+ {[%emt 0:00:17]} 40. f4 {[%emt 0:00:01]} Kg7 {[%emt 0:00:05]} 41. Qc8 {[%emt 0:00:03]} Qe4 {[%emt 0:00:06]} 42. Qc3+ {[%emt 0:00:01]} e5 {[%emt 0:00:01]} 43. dxe6+ {[%emt 0:00:05]} Kh6 {[%emt 0:00:05]} 44. Qf6 {[%emt 0:00:05]} Nd6 {[%emt 0:00:06]} 45. Qg5+ {[%emt 0:00:01]} Kg7 {[%emt 0:00:01]} 46. Qe7+ {[%emt 0:00:01]} Kh6 {[%emt 0:00:01]} 1/2-1/2

[Event "German-ch Blitz Women 2022"]
[Site "Magdeburg"]
[Date "2022.08.13"]
[Round "15.10"]
[White "Muetsch, Annmarie"]
[Black "Skibbe, Diana"]
[Result "1-0"]
[ECO "C50"]
[WhiteElo "2249"]
[BlackElo "1943"]
[Annotator "TA"]
[PlyCount "61"]
[EventDate "2022.08.10"]
[EventType "tourn"]
[EventCountry "GER"]
[SourceTitle "playchess.com"]
[Source "ChessBase"]
[SourceQuality "1"]
[TimeControl "180+2"]

{[%evp 12,61,89,89,171,169,503,495,539,512,616,609,608,596,644,566,581,485,549,545,563,552,528,545,570,561,578,579,651,645,697,679,676,672,697,679,798,798,802,800,862,862,812,768,893,909,989,979,1118,1111,1063,1030]} 1. e4 {[%emt 0:00:01]} e5 {[%emt 0:00:01]} 2. Nf3 {[%emt 0:00:01]} Nc6 {[%emt 0:00:01]} 3. Bc4 {[%emt 0:00:01]} Nf6 {[%emt 0:00:02]} 4. d3 {[%emt 0:00:04]} Bc5 {[%emt 0:00:05]} 5. c3 {[%emt 0:00:01]} d5 {[%emt 0:00:04]} 6. exd5 {[%emt 0:00:05]} Nxd5 {[%emt 0:00:03] [#]} 7. Qb3 $1 {[%emt 0:00:12]} Be6 {[%emt 0:00:26] C54: Giuoco Piano: 4 c3 Nf6, main lines with 5 d4 and 5 d3.} (7... O-O $16) 8. Qxb7 $18 {[%emt 0:00:11]} O-O $2 {[%emt 0:00:13]} (8... Nde7) 9. Qxc6 {[%emt 0:00:06] [#] White is clearly winning.} Bb6 $146 {[%emt 0:00:20]} ({Predecessor:} 9... Qd6 10. Qxd6 Bxd6 11. O-O Nf6 12. Bxe6 fxe6 13. Nbd2 Nd7 14. Nc4 Nc5 15. Ncxe5 Bxe5 16. Nxe5 {1-0 (28) Johnson,J (2069)-Pillay,R (1312) Tromsoe 2014}) 10. O-O {[%emt 0:00:14]} e4 {[%emt 0:00:07]} 11. dxe4 {[%emt 0:00:12]} Ne7 {[%emt 0:00:01]} 12. Qa4 {[%emt 0:00:03]} Bg4 {[%emt 0:00:07]} 13. Be2 {[%emt 0:00:07]} Ng6 {[%emt 0:00:02]} 14. Be3 {[%emt 0:00:08]} Bxe3 {[%emt 0:00:11]} 15. fxe3 {[%emt 0:00:03]} Qe7 {[%emt 0:00:14]} 16. Qb4 {[%emt 0:00:06]} c5 {[%emt 0:00:04]} 17. Qa4 {[%emt 0:00:13]} Bd7 {[%emt 0:00:04]} 18. Qc2 {[%emt 0:00:03]} Kh8 {[%emt 0:00:06]} 19. Nbd2 {[%emt 0:00:02]} f5 {[%emt 0:00:03]} 20. Bd3 {[%emt 0:00:12]} f4 {[%emt 0:00:12]} 21. Nc4 {[%emt 0:00:19]} Bb5 {[%emt 0:00:12]} 22. Qe2 {[%emt 0:00:18]} Rad8 {[%emt 0:00:10]} 23. b3 {[%emt 0:00:07]} Qd7 {[%emt 0:00:16]} 24. Rad1 {[%emt 0:00:06]} Qg4 {[%emt 0:00:03]} 25. h3 {[%emt 0:00:09]} Qh5 {[%emt 0:00:11]} 26. a4 {[%emt 0:00:05]} Ba6 {[%emt 0:00:04]} 27. Nb2 {[%emt 0:00:05]} c4 {[%emt 0:00:09]} 28. Bxc4 {[%emt 0:00:05]} Bxc4 {[%emt 0:00:09]} 29. Nxc4 {[%emt 0:00:03]} fxe3 {[%emt 0:00:02]} 30. Rxd8 {[%emt 0:00:04]} Rxd8 {[%emt 0:00:02]} 31. Qxe3 {[%emt 0:00:02] Black got outplayed after the opening.  Weighted Error Value: White=0.20 (precise) /Black=0.87} 1-0